bitfinex/quotes_ETHUSD_20260312
["timestamp","ask_amount","ask_price","bid_price","bid_amount"]
[1773348714753,0.002,2065.2,2065.0,0.001]
[1773348714933,0.48151985,2065.2,2064.9,0.001]
[1773348718461,0.48151985,2065.2,2064.9,0.45713779]
[1773348720172,1.69206191,2065.2,2064.9,0.45713779]
[1773348720853,0.48151985,2065.2,2064.9,0.45713779]
[1773348721160,1.69207168,2065.2,2064.9,0.45713779]
[1773348721361,1.69207168,2065.2,2064.8,0.001]
[1773348721362,0.47951985,2065.1,2064.8,0.001]
[1773348721564,0.47951985,2064.8,2064.5,0.001]
[1773348721755,1.52290746,2064.7,2064.4,0.45713779]
[1773348722142,1.52290746,2064.7,2064.4,0.001]
[1773348722143,0.47951985,2064.6,2064.4,0.001]
[1773348723056,1.69032907,2064.8,2064.4,0.45713779]
[1773348723771,0.002,2065.2,2064.5,0.45613779]
[1773348724068,1.04338761,2064.7,2064.5,0.45613779]
[1773348724451,5.83892524,2064.7,2064.4,0.001]
[1773348724939,4.79553763,2064.7,2064.4,1.21197793]
[1773348725146,0.47951985,2064.6,2064.4,0.001]
[1773348726442,4.31601778,2064.7,2064.4,0.45713779]
[1773348728367,1.6902923,2064.8,2064.4,1.6681319]
[1773348728667,4.31601778,2064.7,2064.4,1.6681319]
[1773348731282,4.79553763,2064.6,2064.4,0.001]
[1773348731571,0.47951985,2064.4,2064.1,0.46924966]
[1773348731958,0.47951985,2064.3,2064.1,0.01311187]
[1773348734782,0.47951985,2064.3,2064.1,1.22428394]
[1773348736985,4.79553763,2064.3,2064.1,1.22428394]
[1773348738256,4.31601778,2064.3,2064.1,1.22428394]
[1773348739582,2.49051985,2064.4,2064.1,1.22428394]
[1773348739784,4.31601778,2064.3,2064.1,1.68042173]
[1773348740805,0.002,2064.7,2064.2,0.49632601]
[1773348740994,0.002,2064.7,2064.3,1.04338761]
[1773348741498,0.002,2064.7,2064.4,0.49632601]
[1773348743997,0.002,2064.7,2064.5,1.21094696]
[1773348744301,0.002,2064.7,2064.5,1.70727297]
[1773348747699,0.002,2064.7,2064.5,1.21094696]
[1773348747904,0.002,2064.7,2064.6,0.49632601]
[1773348749207,0.002,2064.7,2064.5,1.70727297]
[1773348752608,0.002,2064.7,2064.6,1.70721431]
[1773348754380,6.412,2064.9,2064.7,0.49632601]
[1773348754799,6.91115075,2064.9,2064.6,1.2108883]
[1773348755709,6.91115075,2064.9,2064.6,1.70721431]
[1773348756708,0.49915075,2064.8,2064.4,1.70733162]
[1773348757114,0.49915075,2064.8,2064.5,0.49632601]
[1773348762509,0.49915075,2064.8,2064.6,1.2108883]
[1773348763217,0.49915075,2064.8,2064.7,0.001]
[1773348764000,0.50115075,2064.8,2064.7,0.001]
[1773348777349,0.002,2064.8,2064.7,0.001]
[1773348779242,0.45840758,2064.8,2064.7,0.001]
[1773348779555,0.45640758,2064.7,2064.4,0.001]
[1773348779944,0.45640758,2064.7,2064.4,1.21200485]
[1773348780320,2.039,2064.6,2064.4,1.21200485]
[1773348780640,2.041,2064.8,2064.5,0.4912827]
[1773348781829,2.041,2064.8,2064.6,1.702171]
[1773348782549,6.412,2064.9,2064.7,0.4912827]
[1773348782850,0.002,2065.0,2064.8,0.4912827]
[1773348784750,0.002,2065.0,2064.9,1.70199508]
[1773348787160,0.01410884,2065.1,2064.9,1.70199508]
[1773348790561,0.01410884,2065.1,2065.0,0.001]
[1773348800188,7.62242206,2065.4,2065.0,0.001]
[1773348800189,0.002,2065.4,2065.1,0.4912827]
[1773348800353,0.002,2065.4,2065.3,0.47000986]
[1773348802248,0.002,2065.4,2065.2,1.68054636]
[1773348802571,0.002,2065.4,2065.1,1.21059512]
[1773348802572,0.46455534,2065.4,2065.1,1.21059512]
[1773348802772,0.46455534,2065.4,2065.2,0.001]
[1773348806099,0.46455534,2065.4,2065.0,0.001]
[1773348806267,0.46455534,2065.4,2064.8,1.21174224]
[1773348806268,0.46255534,2065.2,2064.8,1.21174224]
[1773348808388,0.46255534,2065.1,2064.8,1.21174224]
[1773348809387,0.46255534,2065.1,2064.8,1.6817521]
[1773348814096,0.46255534,2065.1,2064.7,0.001]
[1773348814097,0.46255534,2065.0,2064.7,0.001]
[1773348815196,0.002,2064.9,2064.7,0.001]
[1773348815496,0.46455534,2064.9,2064.8,0.001]
[1773348817999,0.002,2064.9,2064.8,0.001]
[1773348818170,0.002,2064.9,2064.8,0.47100986]
[1773348820799,0.002,2064.9,2064.8,0.001]
[1773348821797,0.46455534,2064.9,2064.8,0.001]
[1773348826375,0.46455534,2064.9,2064.7,0.001]
[1773348826891,0.46204627,2064.7,2064.4,1.21198749]
[1773348827078,0.46204627,2064.7,2064.4,0.001]
[1773348828099,0.46204627,2064.7,2064.5,0.001]
[1773348828301,2.049,2064.8,2064.5,0.4986873]
[1773348828703,2.51104627,2064.8,2064.5,0.4986873]
[1773348830203,2.51104627,2064.8,2064.5,1.70961907]
[1773348830578,2.51104627,2064.8,2064.5,0.001]
[1773348830579,0.46264493,2064.7,2064.5,0.001]
[1773348830790,0.46264493,2064.7,2064.4,0.001]
[1773348832805,0.46264493,2064.7,2064.3,0.0011]
[1773348832806,0.46264493,2064.5,2064.3,0.0011]
[1773348834906,0.46264493,2064.4,2064.3,0.0011]
[1773348841492,0.46264493,2064.3,2064.0,0.4960088]
[1773348841730,0.46264493,2064.2,2063.9,0.4950088]
[1773348841885,0.46264493,2064.2,2063.8,4.0108741]
[1773348842090,0.46264493,2064.1,2063.6,1.71859518]
[1773348843486,0.46264493,2064.1,2063.6,1.22358936]
[1773348843697,0.46264493,2063.9,2063.6,1.22358936]
[1773348844019,0.46264493,2063.9,2063.6,0.0121149]
[1773348844216,1.21133693,2063.9,2063.6,0.0121149]
[1773348844526,2.51964493,2063.8,2063.6,0.0121149]
[1773348845127,0.46264493,2063.7,2063.6,0.0121149]
[1773348846229,2.057,2063.8,2063.6,0.0121149]
[1773348848034,2.51964493,2063.8,2063.6,0.0121149]
[1773348849423,0.46264493,2063.7,2063.6,0.0121149]
[1773348852018,0.46364493,2063.7,2063.6,0.0121149]
[1773348855518,0.46264493,2063.6,2063.3,0.001]
[1773348855728,0.46264493,2063.4,2062.5,0.01212096]
[1773348855932,2.6023681,2063.6,2062.0,0.01212399]
[1773348855933,0.46264493,2063.0,2062.6,0.91077795]
[1773348856214,0.46264493,2063.1,2062.7,0.4950088]
[1773348856415,0.46264493,2063.0,2062.4,0.4950088]
[1773348857366,0.46264493,2063.0,2062.0,5.90575231]
[1773348857367,0.46264493,2062.4,2062.0,1.71953943]
[1773348857654,1.04420298,2062.3,2062.0,0.01212399]
[1773348857959,0.46264493,2062.0,2061.6,0.4950088]
[1773348858645,0.46264493,2062.0,2061.4,4.8510243]
[1773348858646,0.46264493,2061.8,2061.0,0.4950088]
[1773348859358,0.46264493,2061.8,2061.2,0.4950088]
[1773348860053,0.46264493,2062.2,2061.3,0.4950088]
[1773348860357,0.46264493,2062.2,2061.2,1.04420298]
[1773348860358,0.46264493,2062.2,2061.6,0.4950088]
[1773348860749,1.68715485,2062.5,2061.6,0.4950088]
[1773348860934,0.47500079,2062.3,2061.6,0.4950088]
[1773348861235,1.51920377,2062.2,2061.6,0.4950088]
[1773348861955,1.51920377,2062.2,2061.7,1.21259155]
[1773348862748,2.7315022,2062.2,2061.7,1.21259155]
[1773348863055,1.04420298,2062.2,2061.7,1.21259155]
[1773348863267,0.47500079,2062.1,2061.7,1.21259155]
[1773348864161,0.001,2062.0,2061.6,4.8503662]
[1773348864350,0.47500079,2061.9,2061.6,4.8503662]
[1773348865658,0.47500079,2061.9,2061.5,1.22480466]
[1773348866264,1.68753352,2061.8,2061.5,0.01212702]
[1773348866443,0.47500079,2061.7,2061.5,0.01212702]
[1773348868073,0.47500079,2061.9,2061.5,1.22483204]
[1773348868251,0.001,2062.0,2061.7,1.21259155]
[1773348868764,0.001,2062.0,2061.8,0.46514499]
[1773348868967,3.74625511,2062.5,2061.8,0.46514499]
[1773348869174,0.48712478,2062.5,2061.8,0.46514499]
[1773348870651,0.48712478,2062.5,2061.9,1.67761892]
[1773348871168,0.48712478,2062.5,2062.0,0.46514499]
[1773348872474,1.69924964,2062.5,2062.0,0.46514499]
[1773348872852,1.69924964,2062.5,2062.1,1.21235633]
[1773348874340,0.01212399,2062.5,2062.2,0.46514499]
[1773348874570,0.01212399,2062.5,2062.1,1.21235633]
[1773348874571,1.69925061,2062.5,2062.1,1.21235633]
[1773348875348,0.48712478,2062.5,2062.1,1.21235633]
[1773348875981,0.001,2062.3,2062.1,1.21235633]
[1773348876954,0.001,2062.3,2062.0,1.67751548]
[1773348879454,0.001,2062.3,2062.1,0.46514499]
[1773348879656,0.47500079,2063.0,2062.1,0.46514499]
[1773348879956,0.47500079,2063.0,2062.2,0.46514499]
[1773348880159,0.01212096,2063.1,2062.2,0.46514499]
[1773348880783,0.48712175,2063.1,2062.2,0.46514499]
[1773348881493,1.69889253,2063.1,2062.2,0.46514499]
[1773348882584,1.69889253,2063.1,2062.4,0.48471834]
[1773348882797,0.45185967,2063.0,2062.3,1.21223876]
[1773348883163,0.45185967,2063.0,2062.3,1.6969571]
[1773348884254,0.45185967,2063.0,2062.4,0.48471834]
[1773348884460,0.01212096,2063.1,2062.4,0.48471834]
[1773348884666,0.46398063,2063.1,2062.5,1.21212121]
[1773348884870,0.46398063,2063.1,2062.6,0.48471834]
[1773348885088,1.67576327,2063.1,2062.6,0.48471834]
[1773348885281,0.45185967,2063.0,2062.6,0.48471834]
[1773348886787,0.45185967,2063.0,2062.7,1.21200368]
[1773348888083,0.01212096,2063.1,2062.7,1.69672202]
[1773348888281,0.46398063,2063.1,2062.7,1.69672202]
[1773348888483,0.001,2062.9,2062.7,1.69672202]
[1773348889095,0.45285967,2062.9,2062.5,0.48471834]
[1773348891406,0.001,2062.9,2062.7,0.48028828]
[1773348891610,0.01212096,2063.1,2062.7,0.48028828]
[1773348893992,0.01212096,2063.1,2062.9,0.48028828]
[1773348894601,0.4695142,2063.0,2062.4,0.48028828]
[1773348896422,1.6813469,2063.0,2062.5,1.21212121]
[1773348896610,1.6813469,2063.0,2062.6,0.48028828]
[1773348896920,0.4695142,2063.0,2062.6,0.48028828]
[1773348898190,0.01212096,2063.1,2062.6,0.48028828]
[1773348898421,0.01212096,2063.1,2062.7,1.21200368]
[1773348898620,0.01212096,2063.1,2062.8,0.48028828]
[1773348900610,0.01212096,2063.1,2062.9,1.21188617]
[1773348900923,6.41,2063.3,2063.0,0.48028828]
[1773348901111,6.36010206,2063.3,2063.1,0.48028828]
[1773348901314,0.48163213,2063.6,2063.1,0.48028828]
[1773348902431,0.01211793,2063.6,2063.1,0.48028828]
[1773348902923,0.01211793,2063.6,2063.3,0.48028828]
[1773348904904,0.01211793,2063.6,2063.3,1.21163435]
[1773348905129,0.01211793,2063.6,2063.4,0.48028828]
[1773348906922,0.01211793,2063.6,2063.5,0.48028828]
[1773348910002,0.01211793,2063.6,2063.5,1.69182208]
[1773348910207,0.4816291,2064.1,2063.6,0.48028828]
[1773348910934,0.0121149,2064.1,2063.7,1.69170466]
[1773348911239,0.0121149,2064.1,2063.8,0.48028828]
[1773348913036,0.0121149,2064.1,2063.8,1.6916352]
[1773348913239,0.001,2063.9,2063.8,0.48028828]
[1773348913739,0.0121149,2064.1,2063.9,0.48028828]
[1773348914039,0.0121149,2064.1,2063.7,4.84561738]
[1773348914040,0.0121149,2064.1,2063.7,1.6916593]
[1773348914245,1.69281103,2064.1,2063.7,1.6916593]
[1773348915018,0.4816291,2064.1,2063.8,0.48028828]
[1773348915215,0.0121149,2064.1,2063.9,0.48028828]
[1773348916041,0.0121149,2064.1,2063.8,1.21130335]
[1773348916042,0.4816291,2064.1,2063.6,0.48028828]
[1773348916339,0.4695142,2064.0,2063.6,0.48028828]
[1773348916547,0.4695142,2064.0,2063.5,1.21258648]
[1773348916719,0.4695142,2064.0,2063.6,0.48028828]
[1773348917318,2.28079835,2064.0,2063.6,0.48028828]
[1773348918648,2.28079835,2064.0,2063.6,1.69175002]
[1773348919962,2.28079835,2064.0,2063.6,1.69176115]
[1773348921557,1.0695142,2064.0,2063.6,1.69176115]
[1773348921728,1.0695142,2064.0,2063.7,0.45354128]
[1773348921923,0.6,2064.0,2063.7,1.66491705]
[1773348922146,0.6,2064.0,2063.8,0.45354128]
[1773348923629,1.7031053,2064.1,2063.8,0.45354128]
[1773348925239,1.7031053,2064.1,2063.8,0.45464128]
[1773348927232,0.0121149,2064.1,2063.8,1.21245055]
[1773348927437,0.0121149,2064.1,2063.9,0.45354128]
[1773348929061,0.0121149,2064.1,2064.0,0.45354128]
[1773348934353,0.0121149,2064.1,2063.9,1.70956822]
[1773348935393,0.0121149,2064.1,2064.0,0.4982821]
[1773348937271,0.46812625,2064.0,2063.8,0.0011]
[1773348937444,0.001,2063.9,2063.8,0.0011]
[1773348938777,0.46912625,2063.9,2063.6,0.0011]
[1773348939975,0.46912625,2063.9,2063.6,0.4993821]
[1773348941875,1.68043182,2063.9,2063.6,0.4993821]
[1773348942277,0.46912625,2063.9,2063.6,0.4993821]
[1773348944253,1.68042993,2063.9,2063.6,0.4993821]
[1773348944683,0.48759268,2063.8,2063.6,0.0011]
[1773348945010,0.48759268,2063.8,2063.5,0.0011]
[1773348947058,0.48759268,2063.8,2063.5,1.2126338]
[1773348950586,0.48759268,2063.8,2063.7,0.001]
[1773348952461,0.001,2063.9,2063.7,0.001]
[1773348953082,0.46391055,2063.9,2063.7,0.001]
[1773348958201,1.67522082,2063.9,2063.7,0.001]
[1773348958368,0.46291055,2063.8,2063.5,0.0011]
[1773348958569,0.46291055,2063.7,2063.5,0.0011]
[1773348958873,0.46291055,2063.7,2063.3,0.0011]
[1773348959072,0.6,2063.7,2063.3,0.0011]
[1773348959263,0.46291055,2063.6,2063.3,0.0011]
[1773348959465,0.46291055,2063.6,2063.3,1.21274708]
[1773348959666,0.46291055,2063.6,2063.3,1.67641349]
[1773348961500,4.845476,2063.8,2063.4,0.46366641]
[1773348961691,0.001,2063.9,2063.4,0.46366641]
[1773348961872,1.67521783,2063.9,2063.4,0.46366641]
[1773348963494,1.67521783,2063.9,2063.4,1.21155081]
[1773348963793,1.67521783,2063.9,2063.5,0.46366641]
[1773348964000,1.67521783,2063.9,2063.5,0.46476641]
[1773348964199,0.001,2063.6,2063.5,0.46476641]
[1773348964710,0.001,2063.6,2063.5,0.51322775]
[1773348964870,0.001,2063.9,2063.6,0.46366641]
[1773348966199,0.001,2063.9,2063.7,0.46366641]
[1773348968275,0.001,2063.9,2063.8,1.67502409]
[1773348968585,0.46491055,2064.4,2064.0,0.46366641]
[1773348968883,1.67592408,2064.4,2064.0,0.46366641]
[1773348969505,0.46491055,2064.4,2064.0,0.46366641]
[1773348970104,1.67592146,2064.4,2064.0,0.46366641]
[1773348970603,1.67592146,2064.4,2064.1,0.46366641]
[1773348972976,0.46491055,2064.4,2064.1,0.46366641]
[1773348973811,1.675919,2064.4,2064.1,0.46366641]
[1773348974504,0.46491055,2064.4,2064.1,0.46366641]
[1773348975212,1.67591954,2064.4,2064.1,0.46366641]
[1773348976380,0.002,2064.4,2064.2,0.46366641]
[1773348978408,1.22500017,2064.6,2064.3,0.46366641]
[1773348978799,1.68791072,2064.6,2064.1,5.30837805]
[1773348979006,0.46291055,2064.5,2064.1,1.67480545]
[1773348979584,1.67388746,2064.5,2064.1,1.67480545]
[1773348980099,1.67388746,2064.5,2064.1,0.46366641]
[1773348980304,0.46291055,2064.4,2063.8,1.67498254]
[1773348980614,0.46488723,2064.3,2063.9,0.48840274]
[1773348981708,1.67599355,2064.3,2063.9,0.48840274]
[1773348984020,1.67599355,2064.3,2063.9,1.69969761]
[1773348985212,1.21110632,2064.3,2064.0,0.48840274]
[1773348988518,1.21110632,2064.3,2064.2,0.001]
[1773348995799,1.67599355,2064.3,2064.2,0.001]
[1773348995995,0.46488723,2064.2,2063.7,1.21246093]
[1773348996199,0.46488723,2064.2,2063.7,1.70086367]
[1773348996400,0.46488723,2064.2,2063.8,0.48840274]
[1773348998101,0.46488723,2064.2,2063.9,0.48840274]
[1773348999226,1.21110632,2064.3,2063.9,0.48840274]
[1773348999528,1.81302096,2064.4,2063.9,0.48840274]
[1773348999726,0.002,2064.4,2064.0,0.48840274]
[1773349000420,0.002,2064.4,2064.2,0.48840274]
[1773349002544,0.002,2064.4,2064.3,0.48474514]
[1773349004114,0.002,2064.4,2064.1,1.6958975]
[1773349004615,0.002,2064.4,2064.2,0.48474514]
[1773349004813,0.002,2064.4,2064.0,0.001]
[1773349005016,0.48598873,2064.3,2064.0,0.001]
[1773349005424,0.48598873,2064.3,2063.8,0.001]
[1773349006339,1.044118,2064.2,2063.8,0.001]
[1773349006538,0.48598873,2064.1,2063.8,0.001]
[1773349006719,0.48598873,2063.9,2063.8,0.001]
[1773349013546,1.21127443,2064.0,2063.8,0.001]
[1773349013547,4.84459381,2064.2,2063.8,0.49588304]
[1773349013858,5.31227253,2064.2,2064.0,0.0011]
[1773349018850,0.46767872,2064.1,2064.0,0.0011]
[1773349021054,1.67886034,2064.1,2064.0,0.0011]
[1773349024760,0.46767872,2064.3,2064.0,0.49598304]
[1773349024938,3.77272674,2064.4,2064.0,0.49598304]
[1773349025754,0.46767872,2064.3,2064.0,0.49598304]
[1773349026154,0.46767872,2064.3,2064.0,0.0011]
[1773349026327,1.06767872,2064.2,2064.0,0.0011]
[1773349026753,0.46767872,2064.1,2063.8,0.001]
[1773349028058,1.21123301,2064.1,2063.8,0.001]
[1773349028354,0.46767872,2064.0,2063.8,0.001]
[1773349030755,0.46767872,2063.9,2063.8,0.001]
[1773349032570,0.46767872,2064.0,2063.8,0.001]
[1773349035469,0.46767872,2064.0,2063.8,0.001]
[1773349037131,0.002,2063.9,2063.8,0.001]
[1773349038868,0.46967872,2063.9,2063.6,0.0121149]
[1773349039165,0.46967872,2063.9,2063.6,0.50699794]
[1773349041842,0.46967872,2063.9,2063.6,1.71846998]
[1773349042469,0.002,2063.9,2063.7,0.47519645]
[1773349043840,0.4666428,2063.9,2063.6,0.0121149]
[1773349045466,0.4646428,2063.7,2063.5,0.0011]
[1773349048176,1.67607545,2063.7,2063.5,0.0011]
[1773349048376,0.4646428,2063.6,2063.5,0.0011]
[1773349050980,0.001,2063.7,2063.5,0.47629645]
[1773349051285,0.002,2063.9,2063.7,0.47519645]
[1773349056349,0.602,2063.9,2063.7,0.47519645]
[1773349061860,1.0666428,2063.9,2063.6,0.0011]
[1773349062054,0.4646428,2063.8,2063.6,0.0011]
[1773349063654,0.602,2063.9,2063.6,0.0011]
[1773349063953,1.09107847,2063.9,2063.6,0.0011]
[1773349064873,0.48907847,2063.7,2063.3,0.0011]
[1773349065094,0.48907847,2063.7,2063.3,1.21165123]
[1773349065256,0.48907847,2063.7,2063.3,1.7113736]
[1773349067360,1.70049718,2063.7,2063.3,1.7113736]
[1773349070180,1.70049718,2063.7,2063.4,0.0011]
[1773349073080,1.70049718,2063.7,2063.5,0.0011]
[1773349074476,2.27643646,2063.9,2063.5,0.49380974]
[1773349074678,0.602,2063.9,2063.6,0.49270974]
[1773349074863,0.6009,2063.9,2063.6,0.49270974]
[1773349076797,0.0141149,2064.1,2063.7,0.49270974]
[1773349080501,0.46309017,2064.0,2063.6,1.21143493]
[1773349080686,0.46309017,2064.0,2063.6,1.70414467]
[1773349081506,0.46309017,2064.0,2063.6,1.70415509]
[1773349081707,0.0141149,2064.1,2063.7,0.49270974]
[1773349082509,0.0141149,2064.1,2063.9,0.49270974]
[1773349085900,1e-08,2064.1,2064.0,1.70395005]
[1773349086606,1e-08,2064.1,2064.0,0.49270974]
[1773349091610,1e-08,2064.1,2064.0,1.70395005]
[1773349092410,1e-08,2064.1,2064.0,1.21124031]
[1773349094510,1e-08,2064.2,2064.0,1.21124031]
[1773349095792,0.46309017,2064.3,2064.0,1.21124031]
[1773349096190,0.46309017,2064.3,2063.9,1.70396034]
[1773349096689,0.46309017,2064.3,2064.1,0.0011]
[1773349099890,1.67415628,2064.3,2064.1,0.0011]
[1773349100514,1.21106611,2064.3,2064.1,0.0011]
[1773349100723,0.4806841,2064.2,2064.1,0.0011]
[1773349103814,0.4806841,2064.1,2063.7,1.67410119]
[1773349105200,0.4806841,2064.1,2063.7,1.21140397]
[1773349105403,1.21106428,2064.3,2063.8,0.46269722]
[1773349105599,1.69174838,2064.3,2063.8,0.46269722]
[1773349109331,1.69174838,2064.3,2064.0,0.001]
[1773349109704,0.002,2064.1,2064.0,0.001]
[1773349116132,0.4826841,2064.1,2064.0,0.001]
[1773349117132,0.002,2064.1,2064.0,0.001]
[1773349128118,0.002,2064.1,2063.9,0.46369722]
[1773349130745,0.002,2064.1,2063.7,0.48030977]
[1773349130924,0.46334782,2064.1,2063.7,0.48030977]
[1773349131326,0.002,2064.1,2063.7,0.48030977]
[1773349131650,0.002,2064.1,2063.8,0.48030977]
[1773349132142,0.002,2064.1,2063.9,1.21129899]
[1773349132337,0.002,2064.1,2064.0,0.45720815]
[1773349132740,0.46334782,2064.1,2063.8,1.21130942]
[1773349132924,0.46334782,2064.1,2063.8,1.69161919]
[1773349133323,0.002,2064.1,2063.8,1.21130942]
[1773349133522,0.002,2064.1,2063.9,0.48030977]
[1773349134249,0.002,2064.1,2063.9,1.21125215]
[1773349134553,0.002,2064.1,2064.0,0.48030977]
[1773349134756,0.002,2064.1,2063.8,1.69162571]
[1773349134926,0.002,2063.9,2063.8,1.69162571]
[1773349137050,0.002,2064.1,2063.9,0.48030977]
[1773349138759,0.46334782,2064.1,2063.8,1.21131594]
[1773349139257,0.002,2064.1,2063.8,0.48030977]
[1773349139828,0.46134782,2064.0,2063.6,0.0132149]
[1773349140327,2.25680381,2064.1,2063.3,1.69305279]
[1773349140328,0.46134782,2063.8,2063.3,1.69305279]
[1773349141745,0.46134782,2063.7,2063.3,1.69305279]
[1773349143661,1.67276916,2063.7,2063.3,1.69305279]
[1773349143957,0.46134782,2063.7,2063.4,0.48030977]
[1773349145736,1.67276911,2063.7,2063.4,0.48030977]
[1773349145936,1.67276911,2063.7,2063.3,1.69305279]
[1773349146261,0.46134782,2063.6,2063.3,1.69305279]
[1773349146444,0.46134782,2063.6,2063.3,1.21274302]
[1773349146648,0.46134782,2063.6,2063.3,0.0011]
[1773349147846,0.46134782,2063.5,2063.3,0.0011]
[1773349148058,0.46234782,2063.5,2063.3,0.0011]
[1773349148263,0.46234782,2063.5,2063.4,0.0011]
[1773349152463,1.67388162,2063.5,2063.4,0.0011]
[1773349153567,0.46234782,2063.5,2063.4,0.0011]
[1773349158270,0.001,2063.5,2063.4,0.0011]
[1773349160071,0.001,2063.5,2063.4,0.48140977]
[1773349160279,0.46134782,2063.9,2063.5,0.48030977]
[1773349161060,0.6,2063.7,2063.5,0.48030977]
[1773349164059,2.28454537,2063.7,2063.4,0.49395731]
[1773349164256,0.47312736,2063.6,2063.4,0.0011]
[1773349167281,0.6,2063.7,2063.4,1.21269251]
[1773349167489,1.07312736,2063.7,2063.4,1.21269251]
[1773349169580,1.69847429,2064.1,2063.5,0.49285731]
[1773349169960,1.22534693,2064.1,2063.5,0.49285731]
[1773349170194,0.47312736,2064.0,2063.5,0.49285731]
[1773349170379,0.0141149,2064.1,2063.7,0.49285731]
[1773349171667,0.0141149,2064.1,2063.9,0.49285731]
[1773349172275,0.48724226,2064.1,2063.7,1.704231]
[1773349172677,0.48724226,2064.1,2063.8,0.49285731]
[1773349175659,0.48724226,2064.1,2063.7,1.21137369]
[1773349176363,0.48724226,2064.1,2063.7,1.704231]
[1773349177393,0.48724226,2064.1,2063.7,1.75268765]
[1773349179489,1.69842502,2064.1,2063.7,1.75268765]
[1773349179688,0.47312736,2064.0,2063.7,1.75268765]
[1773349184094,0.47312736,2064.0,2063.9,0.001]
[1773349191703,0.49072271,2063.9,2063.6,0.0011]
[1773349191885,1.70196302,2064.0,2063.7,0.48084977]
[1773349192089,1.70196302,2064.0,2063.6,0.48194977]
[1773349192897,0.49072271,2063.9,2063.6,0.0011]
[1773349193702,0.49072271,2064.0,2063.4,0.0011]
[1773349193872,0.49072271,2063.9,2063.4,0.48194977]
[1773349194203,0.49072271,2063.7,2063.4,0.48194977]
[1773349194713,0.49072271,2063.7,2063.4,0.0011]
[1773349195011,2.61472271,2063.8,2063.5,0.48084977]
[1773349195882,3.82609551,2063.8,2063.4,0.48194977]
[1773349196095,2.61472271,2063.8,2063.4,0.48194977]
[1773349196301,0.002,2063.8,2063.4,0.48194977]
[1773349196475,0.6,2063.7,2063.6,0.48084977]
[1773349197103,0.6,2063.7,2063.5,0.001]
[1773349197720,0.6,2063.7,2063.5,0.48184977]
[1773349200410,0.002,2064.0,2063.7,0.34900528]
[1773349200606,0.0141149,2064.1,2063.7,0.34900528]
[1773349200913,0.0141149,2064.1,2063.9,0.34900528]
[1773349201082,0.0141149,2064.1,2063.9,1.56028228]
[1773349201879,0.0141149,2064.1,2063.9,1.56029902]
[1773349202094,0.49272271,2064.3,2063.9,1.56030267]
[1773349202295,0.002,2064.3,2064.0,0.34900528]
[1773349202497,0.01411187,2064.6,2064.2,0.34900528]
[1773349202697,0.49272271,2064.8,2064.5,1.04453382]
[1773349203016,0.002,2064.8,2064.6,0.34900528]
[1773349203196,0.002,2064.8,2064.1,2.67222166]
[1773349203197,0.002,2064.8,2064.7,0.34900528]
[1773349204999,0.002,2064.8,2064.5,1.55990889]
[1773349205300,0.002,2064.8,2064.5,1.55994625]
[1773349205487,0.002,2064.8,2064.5,1.21094097]
[1773349205887,0.002,2064.8,2064.5,1.55994625]
[1773349207408,0.002,2064.8,2064.6,0.34900528]
[1773349209089,0.002,2064.8,2064.6,0.35000528]
[1773349210222,0.002,2064.8,2064.6,1.5608883]
[1773349210524,0.002,2064.8,2064.7,0.34900528]
[1773349211021,0.002,2064.8,2064.6,0.001]
[1773349214025,0.49272271,2064.8,2064.4,0.001]
[1773349214227,0.49272271,2064.8,2064.4,0.35000528]
[1773349214530,0.002,2064.8,2064.5,0.34900528]
[1773349216026,0.002,2064.8,2064.6,0.34900528]
[1773349217603,0.002,2064.8,2064.5,1.21093751]
[1773349217604,0.002,2064.8,2064.5,0.34900528]
[1773349217803,1.70353166,2064.8,2064.5,0.34900528]
[1773349218017,0.49072271,2064.7,2064.4,0.001]
[1773349220307,0.49072271,2064.6,2064.4,0.001]
[1773349221027,0.49272271,2064.6,2064.4,0.001]
[1773349222536,1.70366943,2064.6,2064.4,0.001]
[1773349222722,0.002,2064.8,2064.6,0.34900528]
[1773349224824,0.002,2064.8,2064.6,1.55988856]
[1773349225025,0.002,2064.8,2064.7,0.34900528]
[1773349227247,0.002,2064.8,2064.6,1.55988856]
[1773349233064,0.002,2064.8,2064.6,1.56088856]
[1773349240365,0.45227419,2065.3,2064.9,0.34900528]
[1773349240742,0.45227419,2065.3,2064.6,2.25475661]
[1773349241044,0.45227419,2065.2,2064.6,0.001]
[1773349241246,0.45227419,2065.2,2064.6,1.211877]
[1773349243360,0.48841403,2065.0,2064.6,0.001]
[1773349244764,0.48841403,2065.0,2064.8,0.001]
[1773349244969,0.49041403,2065.0,2064.8,0.001]
[1773349245382,1.69912641,2064.9,2064.8,0.001]
[1773349247096,0.48841403,2064.8,2064.6,0.001]
[1773349247303,0.48841403,2064.7,2064.6,0.001]
[1773349247478,0.48841403,2064.7,2064.6,0.01310884]
[1773349250091,1.69924369,2064.7,2064.6,1e-08]
[1773349250599,0.48841403,2064.7,2064.6,1e-08]
[1773349250805,0.48764416,2064.9,2064.6,0.35000529]
[1773349251182,1.69835783,2064.9,2064.6,0.35000529]
[1773349253390,0.48764416,2064.8,2064.6,1e-08]
[1773349254097,0.48764416,2064.8,2064.5,1.21191698]
[1773349254300,0.48764416,2064.8,2064.5,1.55493121]
[1773349257709,0.48764416,2064.8,2064.7,0.001]
[1773349258294,0.002,2064.8,2064.7,0.34401423]
[1773349258611,0.002,2065.0,2064.8,0.34301423]
[1773349259910,0.002,2065.0,2064.9,0.34301423]
[1773349260110,0.002,2065.2,2064.9,0.34301423]
[1773349260284,2.60164416,2065.4,2065.1,0.34301423]
[1773349260720,3.81206689,2065.4,2065.1,0.34301423]
[1773349261484,0.002,2065.4,2065.1,0.34301423]
[1773349262014,0.002,2065.4,2065.3,0.34301423]
[1773349264309,0.48764416,2065.5,2065.1,5.18538763]
[1773349264500,0.48764416,2065.5,2064.9,5.185747]
[1773349264903,0.48764416,2065.5,2065.0,0.34301423]
[1773349267112,1.21041751,2065.5,2065.0,1.55363504]
[1773349267416,0.48764416,2065.4,2065.0,1.55363504]
[1773349270302,0.48764416,2065.4,2065.2,0.001]
[1773349270502,0.002,2065.3,2065.2,0.001]
[1773349270905,1.22246026,2065.6,2065.2,0.34401423]
[1773349271099,0.002,2065.5,2065.2,0.34401423]
[1773349271613,0.002,2065.5,2065.2,1.55453524]
[1773349272707,0.002,2065.5,2065.3,0.34101423]